Cogmind - Beta 15 @@@ ROGUE MODE // 2025.06.06 @ 00:01:52 Player: 7604 Result: Destroyed by M2-XMZ(R) with Subdweller Machine Gun Performance ------------- Evolutions (0) 0 Regions Visited (2) 400 Robots Destroyed (34) 170 Value Destroyed (785) 785 Prototype IDs (4) 80 Alien Tech Used (0) 0 Bonus (-41) -41 TOTAL SCORE: 1394 Bonus ------- Friendly Fire -41 Cogmind --------- Core Integrity 0/250 Matter 126/300 Energy 190/200 System Corruption 0% Temperature Cool (0) Movement Treading (160) Location -10/Subcaves Parts ------- > --- POWER (1) -------- Subdweller Power Source > --- PROPULSION (2) --- Light Treads Spiked Treads > --- UTILITY (2) ------ Large Storage Unit Seismic Detector > --- WEAPON (2) ------- Improved Light Cannon Improved Light Cannon > --- INVENTORY (15) --- Light Treads Structural Scanner Hacking Suite Riot Gun Riot Gun Beam Cannon Improved Light Cannon Improved Light Cannon Multitool Makeshift Hammer Peak State ------------ > --- POWER ------------ Subdweller Power Source > --- PROPULSION ------- Light Treads Spiked Treads > --- UTILITY ---------- Large Storage Unit Seismic Detector > --- WEAPON ----------- Riot Gun Makeshift Hammer > --- INVENTORY -------- Light Treads Light Treads Structural Scanner Light Armor Plating Hacking Suite Riot Gun Beam Cannon Assault Rifle Improved Light Cannon Improved Light Cannon Improved Light Cannon Improved Light Cannon Rocket Launcher Rocket Launcher Multitool [Rating: 16] Favorites ----------- Power Ion Engine Engine Ion Engine Propulsion Light Treads Treads Light Treads Leg Aluminum Leg Flight Unit Improved Flight Unit Utility Large Storage Unit Device Seismic Detector Storage Large Storage Unit Protection Light Armor Plating Weapon Assault Rifle Energy Gun Riot Gun Energy Cannon Beam Cannon Ballistic Gun Assault Rifle Ballistic Cannon Improved Light Cannon Launcher Rocket Launcher Impact Weapon Makeshift Hammer Build | -11 -10 -10 ------- Run | Yrd Mat Sub Slots Evolved . | . . . Power . | . . . Propulsion . | . . . Utility . | . . . Weapon . | . . . Parts Attached 23 | 1 12 10 Power 1 | . . 1 Engine 1 | . . 1 Core . | . . . Reactor . | . . . Propulsion 7 | . 5 2 Treads 6 | . 4 2 Leg . | . . . Wheel . | . . . Hover . | . . . Flight 1 | . 1 . Utility 3 | 1 2 . Device 1 | 1 . . Storage 1 | . 1 . Processor . | . . . Hackware . | . . . Protection 1 | . 1 . Artifact . | . . . Weapon 12 | . 5 7 Energy Gun 2 | . . 2 Energy Cannon 1 | . 1 . Ballistic Gun 1 | . . 1 Ballistic Cannon 5 | . 3 2 Launcher 2 | . 1 1 Special Weapon . | . . . Impact Weapon 1 | . . 1 Slashing Weapon . | . . . Piercing Weapon . | . . . Special Melee Weapon . | . . . Unidentified Prototypes 1 | . 1 . Parts Lost 5 | . . 5 Power . | . . . Propulsion 1 | . . 1 Utility 1 | . . 1 Weapon 3 | . . 3 Highest Loss Streak 3 | . . 3 To Critical Strikes . | . . . Average Backups 13 | 6 12 14 Power . | 1 1 . Propulsion 1 | 4 . 1 Utility 3 | . 3 3 Weapon 7 | 1 7 8 Tool/Special . | . . . Unused Backups 22 | 6 9 7 Power 3 | 1 . 2 Propulsion 6 | 2 4 . Utility 5 | 1 1 3 Weapon 7 | 2 4 1 Tool/Special 1 | . . 1 Average Slot Usage (%) 99 | . 100 99 Engine 14 | . 14 14 Treads 27 | . 27 27 Device 13 | . 13 12 Storage 14 | . 14 14 Energy Gun 4 | . 2 8 Energy Cannon 7 | . 10 1 Ballistic Gun 8 | . 12 1 Ballistic Cannon 5 | . 2 10 Impact Weapon 2 | . . 5 Peak Build Rating 16 | 7 11 16 Average Rating 10 | 6 8 13 On Entrance 8 | 6 7 11 Naked Turns . | . . . Heaviest Build 36 | 14 34 36 Greatest Support 40 | 20 40 40 Greatest Overweight (x) 1 | . 1 1 Average Overweight (x) . | . . . Largest Inventory Capacity 15 | 8 15 15 Average Capacity 14 | 8 14 15 Most Carried 15 | 7 15 15 Average Carried 13 | 6 12 14 Final Capacity 15 | 8 15 15 Final Carried 15 | 7 15 10 Class Distribution -------------------- 91% | Mutant 8% | Derelict-Mutant Dominant Class ---------------- Mutant | -10/Materials Mutant | -10/Subcaves Resources | -11 -10 -10 ----------- Run | Yrd Mat Sub Matter Collected 949 | 223 497 229 Remotely . | . . . Salvage Created 879 | 37 639 203 Parts 56 | 5 26 25 Haulers Intercepted 1 | . 1 . Recyclers Shooed 5 | 2 3 . Parts Field Recycled . | . . . Retrieved Matter . | . . . Parts Self-Destructed 7 | . . 7 Prevented . | . . . Kills | -11 -10 -10 ------- Run | Yrd Mat Sub Combat Hostiles Destroyed 24 | . 14 10 Guns 4 | . 2 2 Cannons 12 | . 10 2 AOE 8 | . 2 6 Classes Destroyed 11 | 1 6 4 Tunneler 3 | 2 1 . Hauler 1 | . 1 . Recycler 1 | . 1 . Operator 1 | . 1 . Turret 2 | . . 2 Watcher 2 | . 2 . Swarmer 10 | . 6 4 Grunt 8 | . 8 . Artisan 1 | . . 1 Subdweller 6 | . . 6 Scientist 1 | . . 1 Best Kill Streak 5 | 1 3 5 Combat Bots Only 4 | . 3 4 Max Kills in Single Turn 2 | 1 2 2 Gunslinging . | . . . Exploded 2 | . 2 2 Melee . | . . . Uniques/NPCs Destroyed . | . . . Combat | -11 -10 -10 -------- Run | Yrd Mat Sub Hostile Shots Fired 163 | . 60 103 Missed 50 | . 19 31 Hits 113 | . 41 72 Projectile 113 | . 41 72 AOE 1 | . . 1 Damage Taken 1401 | . 416 985 Core 259 | . 99 160 Absorbed by Shields . | . . . Core Remaining (%) 100 | 100 . . Volleys Fired 97 | 6 67 24 Largest 2 | 2 2 2 Hottest 100 | 60 80 100 Shots Fired 179 | 12 126 41 Gun 99 | 12 72 15 Cannon 65 | . 51 14 Launcher 15 | . 3 12 Special . | . . . Kinetic 86 | 6 66 14 Thermal 63 | 6 57 . Explosive 15 | . 3 12 Electromagnetic 15 | . . 15 Robot Hit Streak 8 | 5 8 8 Robot Miss Streak 3 | 3 3 3 Penetration Max . | . . . Secondary Targets . | . . . Shots Hit Robots 111 | 8 76 27 Core Hits 57 | 3 28 26 Critical Kills 1 | . 1 . Critical Parts Destroyed . | . . . Critical Strikes 2 | . 1 1 Destroy 1 | . 1 . Blast 1 | . . 1 Melee Attacks 10 | . . 10 Impact 10 | . . 10 Slashing . | . . . Piercing . | . . . Sneak Attacks . | . . . Combat Hostiles . | . . . Follow-up Attacks . | . . . Damage Inflicted 2403 | 91 1193 1119 Guns 758 | 91 479 188 Cannons 801 | . 621 180 Explosions 815 | . 78 737 Melee . | . . . Ramming 29 | . 15 14 Kinetic 716 | 47 489 180 Thermal 655 | 44 611 . Explosive 815 | . 78 737 Electromagnetic 188 | . . 188 Impact . | . . . Slashing . | . . . Piercing . | . . . Highest Corruption . | . . . Average Corruption . | . . . Corruption Purged . | . . . Corruption Blocked . | . . . Overload Shots . | . . . Overflow Damage 12 | . 4 8 Projectiles 10 | . 4 6 Explosions 2 | . . 2 Melee . | . . . Knockbacks 3 | . . 3 Impact . | . . . Kinetic 3 | . . 3 Secondary . | . . . Self-Inflicted Damage 37 | . . 37 Shots 1 | . . 1 Rammed 7 | . 6 1 Targets Rammed 8 | 1 6 1 Kicked 1 | 1 . . Crushed . | . . . Highest Temperature 213 | . 213 21 Average Temperature 70 | . 71 11 Received Heat Transfer 414 | . 147 267 Siege Activations . | . . . Martial Activations . | . . . Shielding Activations . | . . . Robots Disrupted . | . . . Combat Hostiles . | . . . Robots Corrupted . | . . . Combat Hostiles . | . . . Parts Fried . | . . . Impact Corruptions . | . . . Robots Melted . | . . . Combat Hostiles . | . . . Parts Melted 2 | 1 1 . Heat Transferred 1359 | 100 1259 . Parts Sabotaged . | . . . Parts Stolen . | . . . Parts Stripped . | . . . Power Chain Reactions . | . . . Alert | -11 -10 -10 ------- Run | Yrd Mat Sub Maximum Alert Level . | . . . Low Security (%) 100 | 100 100 . Level 1 . | . . . Level 2 . | . . . Level 3 . | . . . Level 4 . | . . . Level 5 . | . . . High Security . | . . . Max Security . | . . . Peak Influence 151 | 5 151 . Initial . | . . . Average 60 | . 62 . Influence Increases 674 | 10 514 150 Destroy 0b10 Robot/C 400 | . 280 120 Destroy 0b10 Robot/NC 40 | 10 30 . Destroy Leader 66 | . 66 . Successful Hack 35 | . 35 . Select Force Hacks 60 | . 60 . Disable Machine 15 | . 15 . Destroy Structure 28 | . 28 . Lose Combat Pursuer 30 | . . 30 Influence Decreases 674 | 10 391 273 Entered New Map 60 | . . 60 Time Decay 614 | 10 391 213 Squads Dispatched 4 | . 4 . Investigation 3 | . 3 . Extermination . | . . . Reinforcement 1 | . 1 . Assault . | . . . Garrison . | . . . Intercept . | . . . Searches Triggered . | . . . Construction Impeded . | . . . Haulers Reinforced . | . . . Active Scanning Responses . | . . . Cargo Convoy Interrupts . | . . . Stealth | -11 -10 -10 --------- Run | Yrd Mat Sub Distress Signals 1 | . 1 . Communications Jammed . | . . . Distress Signals . | . . . Times Spotted 37 | . 22 15 Peak Tracking Total 6 | . 4 6 Tactical Retreats 1 | . . 1 Traps | -11 -10 -10 ------- Run | Yrd Mat Sub Traps Triggered 1 | . . 1 Indirectly . | . . . Trap Hack Attempts . | . . . Triggered . | . . . Disarmed . | . . . Reprogrammed . | . . . Reused . | . . . Traps Extracted . | . . . Installed . | . . . Triggered . | . . . Machines | -11 -10 -10 ---------- Run | Yrd Mat Sub Machines Disabled 4 | . 1 3 Max in Single Turn 2 | . 1 2 Machines Repaired . | . . . Machines Dismantled . | . . . Machines Sabotaged . | . . . Overloaded Fab Kills . | . . . Hacking | -11 -10 -10 --------- Run | Yrd Mat Sub Machines Accessed 10 | . 10 . Terminals 8 | . 8 . Fabricators . | . . . Repair Stations . | . . . Recycling Units 2 | . 2 . Scanalyzers . | . . . Garrison Access . | . . . Total Hacks 35 | . 35 . Successful 20 | . 20 . Failed 14 | . 14 . Catastrophic . | . . . Database Lockouts 1 | . 1 . Manual 28 | . 28 . Terminals 31 | . 31 . Fabricators . | . . . Repair Stations . | . . . Recycling Units 4 | . 4 . Scanalyzers . | . . . Garrison Access . | . . . Terminal Hacks 6 | . 6 . Robot Schematic 1 | . 1 . Robot Analysis 2 | . 2 . Prototype ID Bank 2 | . 2 . Hauler Manifests 1 | . 1 . Fabricator Hacks . | . . . Repair Station Hacks . | . . . Recycling Unit Hacks 2 | . 2 . Retrieve Components 2 | . 2 . Scanalyzer . | . . . Garrison Access Hacks . | . . . Unauthorized Hacks 12 | . 12 . Terminals 10 | . 10 . Assimilate 1 | . 1 . Botnet 2 | . 2 . Operators 1 | . 1 . Skim 6 | . 6 . Fabricators . | . . . Repair Stations . | . . . Recycling Units 2 | . 2 . Tunnel 2 | . 2 . Scanalyzers . | . . . Garrison Access . | . . . Data Cores Recovered . | . . . Used . | . . . Hacking Detections 9 | . 9 . Full Trace Events 1 | . 1 . Feedback Events . | . . . Feedback Blocked . | . . . Robot Schematics Acquired 1 | . 1 . Robots Built . | . . . Authchips . | . . . Time . | . . . Total Robot Build Rating . | . . . Part Schematics Acquired . | . . . Parts Built . | . . . Authchips . | . . . Time . | . . . Total Part Build Rating . | . . . Parts Repaired . | . . . Time . | . . . Parts Recycled . | . . . Recycled Matter . | . . . Retrieved Matter . | . . . Retrieved Components 19 | . 19 . Parts Scanalyzed . | . . . Part Schematics Acquired . | . . . Parts Damaged . | . . . Bothacking | -11 -10 -10 ------------ Run | Yrd Mat Sub Used RIF Installer . | . . . Robots Hacked . | . . . Non-combat . | . . . Combat . | . . . Robot Hacks Applied . | . . . Relay Couplers Released . | . . . Fabnet Peak Effective % . | . . . Robots Rewired . | . . . Allies Hacked . | . . . Hacks Repelled . | . . . Allies | -11 -10 -10 -------- Run | Yrd Mat Sub Total Allies . | . . . Largest Group . | . . . Highest-Rated Group . | . . . Highest-Rated Ally . | . . . Total Orders . | . . . Ally Attacks . | . . . Total Damage . | . . . Kills . | . . . Allies Corrupted . | . . . Allies Melted . | . . . Intel | -11 -10 -10 ------- Run | Yrd Mat Sub Active Infowar (turns) 4122 | 5 2520 1597 Seismic 4122 | 5 2520 1597 Robot Analysis Total 2 | . 2 . Derelict Logs Recovered 2 | . . 2 Drone Launches . | . . . Drone Recoveries . | . . . Exploration | -11 -10 -10 ------------- Run | Yrd Mat Sub Turns Passed 4492 | 75 2702 1715 Spaces Moved 1971 | 19 1122 830 Core . | . . . Treads 1908 | . 1078 830 Legs 63 | 19 44 . Wheels . | . . . Hover . | . . . Flight . | . . . Fastest Speed 120 | 120 120 160 Average Speed 159 | 120 159 160 Slowest Speed 260 | 120 190 260 Overloaded Moves . | . . . Propulsion Burnouts . | . . . Robots Hopped . | . . . Potential Cave-ins . | . . . Cave-ins Triggered . | . . . Exploration Rate (%) 48 | 2 100 44 Regions Visited 2 Branch Regions 1 Pre-discovered Areas 4 | . 2 2 Known Exits Taken 1 | . 1 . Unknown Exits Taken 1 | 1 . . Scrap Searched 1 | . . 1 Spaces Dug 26 | . 20 6 Terrain Destroyed 94 | . 26 68 Melee 6 | . . 6 Projectile . | . . . AOE 88 | . 26 62 Terrain Rammed . | . . . Walls Destroyed . | . . . Machines Disabled . | . . . Actions | -11 -10 -10 --------- Run | Yrd Mat Sub Total 3112 | 58 1897 1157 Wait 933 | 31 644 258 Move 1969 | 18 1121 830 Hop . | . . . Pick Up 22 | 1 17 4 Fast Attach 3 | 1 1 1 Attach 6 | . 1 5 Detach 2 | . 2 . Swap 43 | . 25 18 Drop 19 | . 13 6 Fire 97 | 6 67 24 Melee 10 | . . 10 Ram . | . . . Kick 1 | 1 . . Crush 7 | . 6 1 Escape Stasis . | . . . Rewire . | . . . Trap . | . . . Miscellaneous . | . . . Route ------- -11/Scrapyard -10/Materials (discovered 5 exits: *Mat x3 / [*Min] / *Sub) -10/Subcaves (discovered 1 exit: [*Rec]) History --------- Turn | Location | Event 1 | -11/Scrapyard | Discovered new exit (range 3) 76 | -11/Scrapyard | Entered Materials 309 | -10/Materials | Build established: Mutant 351 | -10/Materials | Discovered new exit (range 6) 587 | -10/Materials | Central database locked down 1131 | -10/Materials | Identified exit to Subcaves 1131 | -10/Materials | Identified exit to Materials 1168 | -10/Materials | Learned location of 1 exit from Recycling 1195 | -10/Materials | Learned Storage trap positions 1212 | -10/Materials | Learned 4 Recycling zone layouts 1267 | -10/Materials | Learned Storage security intel 1301 | -10/Materials | Discovered exit to Materials (range 16) 2778 | -10/Materials | Entered Subcaves 2779 | -10/Subcaves | Approached by a straggling Scientist 2783 | -10/Subcaves | Discovered new exit (range 9) 2790 | -10/Subcaves | Core integrity fell below 50% 2877 | -10/Subcaves | Shifting Twisted Machinery released Mak. Hammer 2937 | -10/Subcaves | Shifting Twisted Machinery released Spk. Treads 2941 | -10/Subcaves | Shifting Twisted Machinery released Riot Gun 2965 | -10/Subcaves | Learned Materials terminal intel 2992 | -10/Subcaves | Learned location of Zion (-6) 2992 | -10/Subcaves | Met a Zionite searching for "candidates" 3864 | -10/Subcaves | Shifting Twisted Machinery released Riot Gun 4215 | -10/Subcaves | Build established: Derelict-Mutant 4468 | -10/Subcaves | A Subdweller sparked back to life 4468 | -10/Subcaves | A Subdweller sparked back to life 4468 | -10/Subcaves | A Subdweller sparked back to life 4470 | -10/Subcaves | Ambushed by Subdweller buried in earth 4475 | -10/Subcaves | Core integrity fell below 20% 4493 | -10/Subcaves | Destroyed by M2-XMZ(R) with Subdweller Machine Gun Last Messages --------------- 04305_ Subatomizers dissect the Corrupted Sub. Monowheel. 04356_ Subatomizers dissect the Corrupted Disposable Heat Sink. 04468_ XL-XWZ(R) creaks and sparks as it begins to move. 04468_ 1W-SI5(R) creaks and sparks as it begins to move. 04468_ M2-XMZ(R) creaks and sparks as it begins to move. 04470_ Rocket Launcher destroyed. 04471_ UN-BIH(R): "THANKSYOU!" 04471_ 1W-SI5(R) destroyed. 04472_ Assault Rifle destroyed. 04473_ 6O-SXO(R): "NOSTUCKSUB!" 04473_ XL-XWZ(R) destroyed. 04477_ 6O-SXO(R) affixes Scrap Shield Fragment to Scrap Shield. 04478_ Rocket Launcher destroyed. 04481_ UN-BIH(R) knocked back. 04481_ UN-BIH(R) suffers critical hit (Blast). 04481_ UN-BIH(R) destroyed. 04482_ 6O-SXO(R) affixes Scrap Shield Fragment to Scrap Shield. 04484_ 6O-SXO(R) knocked back. 04490_ 6O-SXO(R) destroyed. 04491_ M2-XMZ(R) affixes Scrap Shield Fragment to Scrap Shield. Map ----- +----------------------------------------------------+ | ???????????????### #?## #??## ## | | ?????????????????## ### ### #??# ##?# | | ?????????????????## #### #######??# #??? | | ?????????????????# ### #???????# ???? | | ?????????????????# ### #?????? ???? | | ?????????????????# ##??# #?????# ???? | | ?????????????????# ##???##?????# ???? | | ????????????????## #?????????? #???? | | ????????????????# #?????????? ????? | | ????????????????# #????????? ????? | | ????????????????## ## #???????? ????? | | ?????????????????### ### #??????? ## ????? | | ???????????????????## #?# ??????? ?# ????? | | ????????????????##??## #??# ????????? ????? | | ????????????????# #?## #??? ??????????????? | | ????????????????# ## ##?? ??????????????? | | ??????????????### ##? ## #??????????????? | | ??????????????# #??#?##???????????????? | | ??????????????## ## #?????????????????????? | | ???????????????## ### ##?????????????????????? | | ????????????????## ### ###????????????????????? | | ????????????????# ##; ;#????????????????????? | | ??????????????? # # ;##???????????????????? | | ??????????????# # ##; ; #???????????????????? | | ??????????????## #;; ; #???????????????????? | | ???????????????# @;;#????????????????????? | | ???????????????# %!&#????????????????????? | | ???????????????# R& %&%#????????????????????? | | ???????????????# *% ####????????????????????? | | ???????????????# %&! ????????????????????????? | | ???????????????# & ????????????????????????? | | ???????????????# % ????????????????????????? | | ???????????????# ????????????????????????? | | ??????????????# #????????????????????????? | | ??????????????# # #?????????????????????????? | | ??????????????## ###??????????????????????????? | | ??????????????? ??????????????????????????????? | | ???????????????? ??????????????????????????????? | | ?????????????????????????????????????????????????? | | ?????????????????????????????????????????????????? | | ?????????????????????????????????????????????????? | | ?????????????????????????????????????????????????? | | ?????????????????????????????????????????????????? | | ?????????????????????????????????????????????????? | | ?????????????????????????????????????????????????? | | ?????????????????????????????????????????????????? | | ?????????????????????????????????????????????????? | | ?????????????????????????????????????????????????? | | ?????????????????????????????????????????????????? | | ?????????????????????????????????????????????????? | +----------------------------------------------------+ Best States ------------- Heat Dissipation 25 Energy Generation 15 Energy Capacity 250 Matter Stores 300 Matter Capacity 300 Sight Range 16 Terrain Scan Density 10 Armor Coverage 150 Evasion (%) 55 Recoil Reduction 2 Item Schematics ----------------- None Robot Schematics ------------------ M-13 Machinist | -10/Materials | Hacked Fabricated ------------ Nothing Repaired ---------- Nothing Alien Tech Used ----------------- None Achievements -------------- None Challenges ------------ None Game ------ Seed AerolevThiefDrive Manual? 0 Play Time 00:23:35 Cumulative 424.7 hours Start 2025.06.05 @ 23:37:05 End 2025.06.06 @ 00:01:52 Sessions 1 Manual Loads 0 Difficulty Rogue Special Mode None Game No. 215 Rogue 152 Adventurer 63 Explorer 0 Win Type - Total 9 Types 8/0/0/1/0/0/0/0/0/0 Lore% 86 Gallery% 79 Achievement% 66 Wizard Run 0 Options --------- Layout 0 ASCII 0 Keyboard 1 Movement Numpad Keybinds 0 Fullscreen 1 Font 18/Terminus Map View 76x50 Zoom Use 4% Tactical HUD 1 Map Filters NONE Filters NONE Steam 1 RUN: a967f7ca-07e9-4bc7-ac96-2c8a6592a531